[Event "Vienna Chess Open 2019"]
[Site "Vienna"]
[Date "2019.08.20"]
[Round "5.7"]
[White "Kojima, Shinya"]
[Black "Blohberger, Felix"]
[Result "1/2-1/2"]
[ECO "D38"]
[WhiteElo "2467"]
[BlackElo "2467"]
[Annotator "ChessBase"]
[PlyCount "71"]
[EventDate "2019.08.17"]
[EventType "swiss"]
[EventCountry "AUT"]
[SourceTitle "playchess.com"]
[Source "ChessBase"]
[SourceQuality "1"]
[TimeControl "40/5400+30:1800+30"]

1. Nf3 {[%emt 0:00:00]} d5 {[%emt 0:00:10]} 2. d4 {[%emt 0:00:00]} Nf6 {[%emt 0:00:04]} 3. c4 {[%emt 0:00:00]} e6 {[%emt 0:00:03]} 4. Nc3 {[%emt 0:00:00]} Bb4 {[%emt 0:00:05]} 5. Bg5 {[%emt 0:00:05]} h6 {[%emt 0:00:12]} 6. Bxf6 {[%emt 0:00:09]} Qxf6 {[%emt 0:00:05]} 7. e3 {[%emt 0:00:07]} O-O {[%emt 0:00:11]} 8. Rc1 {[%emt 0:00:06]} Nc6 {[%emt 0:01:06]} 9. cxd5 {[%emt 0:02:01]} exd5 {[%emt 0:00:06]} 10. Be2 {[%emt 0:00:38]} Rd8 {[%emt 0:06:27]} 11. O-O {[%emt 0:00:53]} Bf8 {[%emt 0:10:50]} 12. Na4 {[%emt 0:05:52]} Bd6 {[%emt 0:07:01]} 13. Nc5 {[%emt 0:02:37]} Ne7 {[%emt 0:02:15]} 14. b4 {[%emt 0:02:05]} a5 {[%emt 0:11:40]} 15. b5 {[%emt 0:04:16]} b6 {[%emt 0:03:14]} 16. Nd3 {[%emt 0:01:47]} Ng6 {[%emt 0:01:13]} 17. a4 {[%emt 0:03:22]} Qe7 {[%emt 0:05:40]} 18. Rc3 {[%emt 0:02:23]} f6 {[%emt 0:01:14]} 19. Qc2 {[%emt 0:04:11]} Qf7 {[%emt 0:07:36]} 20. Rc1 {[%emt 0:03:18]} Be6 {[%emt 0:02:05]} 21. g3 {[%emt 0:02:54]} Rd7 {[%emt 0:09:02]} 22. Nf4 {[%emt 0:02:17]} Nxf4 {[%emt 0:05:52]} 23. exf4 {[%emt 0:00:14]} Re7 {[%emt 0:08:55]} 24. Bd3 {[%emt 0:04:07]} g5 {[%emt 0:02:56]} 25. fxg5 {[%emt 0:08:55]} hxg5 {[%emt 0:03:14]} 26. Bg6 {[%emt 0:09:21]} Qg7 {[%emt 0:00:06]} 27. Re3 {[%emt 0:02:21]} Bg4 {[%emt 0:09:43]} 28. Qc6 {[%emt 0:05:15]} Rd8 {[%emt 0:00:15]} 29. Qxd5+ {[%emt 0:00:49]} Kf8 {[%emt 0:00:32]} 30. Bf5 {[%emt 0:02:20]} Bh5 {[%emt 0:02:09]} 31. Rce1 {[%emt 0:02:07]} Rde8 {[%emt 0:00:19]} 32. Be6 {[%emt 0:02:27]} Bf4 {[%emt 0:01:05]} 33. R3e2 {[%emt 0:01:03]} Bd6 {[%emt 0:00:20]} 34. Re3 {[%emt 0:09:03]} Bf4 {[%emt 0:00:04]} 35. R3e2 {[%emt 0:00:44]} Bd6 {[%emt 0:00:01]} 36. Re3 {[%emt 0:00:56]} 1/2-1/2

[Event "Vienna Chess Open 2019"]
[Site "Vienna"]
[Date "2019.08.20"]
[Round "5.7"]
[White "Stark, Lars"]
[Black "Sertbay, Huseyin"]
[Result "1-0"]
[ECO "A04"]
[WhiteElo "2362"]
[BlackElo "2066"]
[Annotator "ChessBase"]
[PlyCount "111"]
[EventDate "2019.08.17"]
[EventType "swiss"]
[EventCountry "AUT"]
[SourceTitle "playchess.com"]
[Source "ChessBase"]
[SourceQuality "1"]
[TimeControl "40/5400+30:1800+30"]

1. Nf3 {[%emt 0:00:00]} c5 {[%emt 0:00:00]} 2. c4 {[%emt 0:00:00]} Nc6 {[%emt 0:00:00]} 3. Nc3 {[%emt 0:00:00]} d6 {[%emt 0:00:57]} 4. g3 {[%emt 0:00:10]} g6 {[%emt 0:00:11]} 5. Bg2 {[%emt 0:00:39]} Bg7 {[%emt 0:00:04]} 6. O-O {[%emt 0:00:10]} e5 {[%emt 0:00:17]} 7. d3 {[%emt 0:01:18]} Nge7 {[%emt 0:00:09]} 8. Ne1 {[%emt 0:00:08]} Be6 {[%emt 0:00:53]} 9. Nd5 {[%emt 0:03:41]} O-O {[%emt 0:09:35]} 10. Nc2 {[%emt 0:00:13]} Rb8 {[%emt 0:00:39]} 11. a4 {[%emt 0:02:29]} f5 {[%emt 0:09:47]} 12. Rb1 {[%emt 0:05:39]} a5 {[%emt 0:00:50]} 13. Bg5 {[%emt 0:01:47]} h6 {[%emt 0:01:41]} 14. Nxe7+ {[%emt 0:01:48]} Nxe7 {[%emt 0:00:12]} 15. Bxe7 {[%emt 0:00:14]} Qxe7 {[%emt 0:00:06]} 16. Ne3 {[%emt 0:00:31]} Kh7 {[%emt 0:11:03]} 17. Nd5 {[%emt 0:00:37]} Bxd5 {[%emt 0:06:05]} 18. Bxd5 {[%emt 0:00:29]} Qd7 {[%emt 0:00:17]} 19. Kg2 {[%emt 0:06:35]} Bf6 {[%emt 0:06:22]} 20. e3 {[%emt 0:02:49]} Bg7 {[%emt 0:12:28]} 21. Qc2 {[%emt 0:04:35]} b6 {[%emt 0:12:54]} 22. Rbe1 {[%emt 0:01:09]} Bf6 {[%emt 0:02:31]} 23. Qb3 {[%emt 0:00:33]} Bg7 {[%emt 0:00:38]} 24. Re2 {[%emt 0:02:28]} Bh8 {[%emt 0:06:23]} 25. Rfe1 {[%emt 0:01:31]} Bf6 {[%emt 0:03:32]} 26. f3 {[%emt 0:03:34]} Bg7 {[%emt 0:01:28]} 27. Rf1 {[%emt 0:06:25]} Rfe8 {[%emt 0:09:48]} 28. Qb5 {[%emt 0:03:40]} Qxb5 {[%emt 0:00:17]} 29. cxb5 {[%emt 0:00:05]} Bf6 {[%emt 0:02:45]} 30. Kf2 {[%emt 0:00:07]} Kg7 {[%emt 0:00:03]} 31. Ke1 {[%emt 0:00:04]} h5 {[%emt 0:01:30]} 32. Kd1 {[%emt 0:00:27]} Rh8 {[%emt 0:00:14]} 33. Kc2 {[%emt 0:00:33]} h4 {[%emt 0:00:20]} 34. Kb3 {[%emt 0:09:05]} hxg3 {[%emt 0:01:03]} 35. hxg3 {[%emt 0:00:06]} Rh3 {[%emt 0:00:43]} 36. Rg1 {[%emt 0:02:04]} Kf8 {[%emt 0:00:51]} 37. Kc4 {[%emt 0:12:45]} Ke7 {[%emt 0:00:07]} 38. d4 {[%emt 0:02:03]} Kd7 {[%emt 0:01:04]} 39. dxc5 {[%emt 0:00:57]} bxc5 {[%emt 0:00:33]} 40. Bf7 {[%emt 0:02:17]} Rh6 {[%emt 0:00:45]} 41. Rgg2 {[%emt 0:37:08]} Rf8 {[%emt 0:03:25]} 42. Bd5 {[%emt 0:00:00]} Kc7 {[%emt 0:00:01]} 43. b4 {[%emt 0:00:00]} Kb6 {[%emt 0:12:11]} 44. bxa5+ {[%emt 0:04:31]} Kxa5 {[%emt 0:00:02]} 45. b6 {[%emt 0:00:16]} e4 {[%emt 0:03:40]} 46. b7 {[%emt 0:00:16]} exf3 {[%emt 0:00:09]} 47. Bxf3 {[%emt 0:00:08]} Rh1 {[%emt 0:04:02]} 48. Kd5 {[%emt 0:04:24]} Be5 {[%emt 0:01:18]} 49. Kc6 {[%emt 0:01:28]} Rb1 {[%emt 0:00:29]} 50. Bd5 {[%emt 0:00:19]} Ka6 {[%emt 0:01:19]} 51. Kc7 {[%emt 0:01:38]} Ka7 {[%emt 0:00:01]} 52. g4 {[%emt 0:02:19]} f4 {[%emt 0:03:39]} 53. exf4 {[%emt 0:00:16]} Rxf4 {[%emt 0:00:17]} 54. Rgf2 {[%emt 0:01:20]} Rxg4 {[%emt 0:05:37]} 55. Rf8 {[%emt 0:00:12]} Rgb4 {[%emt 0:00:04]} 56. Ra8# {[%emt 0:00:07]} 1-0

[Event "Vienna Chess Open 2019"]
[Site "Vienna"]
[Date "2019.08.20"]
[Round "5.8"]
[White "Miedema, David"]
[Black "Abdumalik, Zhansaya"]
[Result "1/2-1/2"]
[ECO "A62"]
[WhiteElo "2371"]
[BlackElo "2457"]
[Annotator "ChessBase"]
[PlyCount "55"]
[EventDate "2019.08.17"]
[EventType "swiss"]
[EventCountry "AUT"]
[SourceTitle "playchess.com"]
[Source "ChessBase"]
[SourceQuality "1"]
[TimeControl "40/5400+30:1800+30"]

1. d4 {[%emt 0:00:00]} Nf6 {[%emt 0:00:00]} 2. c4 {[%emt 0:00:00]} g6 {[%emt 0:00:00]} 3. Nf3 {[%emt 0:00:17]} Bg7 {[%emt 0:00:31]} 4. g3 {[%emt 0:00:08]} O-O {[%emt 0:00:47]} 5. Bg2 {[%emt 0:00:28]} c5 {[%emt 0:00:23]} 6. d5 {[%emt 0:00:55]} e6 {[%emt 0:00:41]} 7. Nc3 {[%emt 0:00:07]} exd5 {[%emt 0:00:29]} 8. cxd5 {[%emt 0:00:05]} d6 {[%emt 0:00:05]} 9. O-O {[%emt 0:00:07]} Re8 {[%emt 0:00:24]} 10. Bf4 {[%emt 0:00:08]} Bf5 {[%emt 0:08:48]} 11. Nh4 {[%emt 0:00:29]} Bg4 {[%emt 0:04:13]} 12. h3 {[%emt 0:00:11]} Nh5 {[%emt 0:01:03]} 13. Bxd6 {[%emt 0:01:33]} Bxe2 {[%emt 0:02:36]} 14. Nxe2 {[%emt 0:00:06]} Qxd6 {[%emt 0:00:05]} 15. Nc3 {[%emt 0:00:05]} Nf6 {[%emt 0:03:55]} 16. Qb3 {[%emt 0:18:29]} Qb6 {[%emt 0:06:16]} 17. Qxb6 {[%emt 0:01:12]} axb6 {[%emt 0:00:06]} 18. a4 {[%emt 0:08:36]} Rd8 {[%emt 0:05:04]} 19. Rfe1 {[%emt 0:16:29]} Ne8 {[%emt 0:04:18]} 20. Nf3 {[%emt 0:00:41]} Na6 {[%emt 0:02:18]} 21. Re7 {[%emt 0:06:42]} Nd6 {[%emt 0:05:15]} 22. Nd2 {[%emt 0:02:08]} Kf8 {[%emt 0:03:11]} 23. Re2 {[%emt 0:01:05]} Nb4 {[%emt 0:00:58]} 24. Rb1 {[%emt 0:01:46]} Re8 {[%emt 0:06:34]} 25. Rxe8+ {[%emt 0:04:49]} Rxe8 {[%emt 0:01:20]} 26. Nce4 {[%emt 0:05:12]} Nxe4 {[%emt 0:06:08]} 27. Nxe4 {[%emt 0:10:49]} Nxd5 {[%emt 0:04:12]} 28. Nxc5 {[%emt 0:01:39]} 1/2-1/2

[Event "Vienna Chess Open 2019"]
[Site "Vienna"]
[Date "2019.08.20"]
[Round "5.8"]
[White "Oboladze, Luka"]
[Black "Valsecchi, Alessio"]
[Result "0-1"]
[ECO "D71"]
[WhiteElo "2323"]
[BlackElo "2494"]
[Annotator "ChessBase"]
[PlyCount "80"]
[EventDate "2019.08.17"]
[EventType "swiss"]
[EventCountry "AUT"]
[SourceTitle "playchess.com"]
[Source "ChessBase"]
[SourceQuality "1"]
[TimeControl "40/5400+30:1800+30"]

1. d4 {[%emt 0:00:00]} Nf6 {[%emt 0:00:00]} 2. c4 {[%emt 0:00:00]} g6 {[%emt 0:00:00]} 3. g3 {[%emt 0:00:00]} c5 {[%emt 0:01:03]} 4. Nf3 {[%emt 0:00:00]} cxd4 {[%emt 0:03:51]} 5. Nxd4 {[%emt 0:00:03]} Nc6 {[%emt 0:09:29]} 6. Bg2 {[%emt 0:00:24]} Bg7 {[%emt 0:00:08]} 7. O-O {[%emt 0:00:16]} O-O {[%emt 0:00:06]} 8. Nc3 {[%emt 0:00:30]} Qa5 {[%emt 0:00:10]} 9. Nb3 {[%emt 0:02:26]} Qh5 {[%emt 0:00:33]} 10. e4 {[%emt 0:05:36]} Qxd1 {[%emt 0:02:24]} 11. Rxd1 {[%emt 0:00:34]} d6 {[%emt 0:01:16]} 12. c5 {[%emt 0:03:23]} Ne8 {[%emt 0:13:19]} 13. Bg5 {[%emt 0:16:21]} dxc5 {[%emt 0:01:09]} 14. Nxc5 {[%emt 0:00:34]} h6 {[%emt 0:00:45]} 15. Bc1 {[%emt 0:16:11]} Kh7 {[%emt 0:03:21]} 16. Nd5 {[%emt 0:05:33]} b6 {[%emt 0:04:02]} 17. Nb3 {[%emt 0:03:43]} Bg4 {[%emt 0:02:13]} 18. f3 {[%emt 0:00:40]} Be6 {[%emt 0:00:37]} 19. f4 {[%emt 0:10:26]} Rc8 {[%emt 0:04:40]} 20. e5 {[%emt 0:02:46]} f6 {[%emt 0:02:36]} 21. exf6 {[%emt 0:04:17]} Nxf6 {[%emt 0:01:47]} 22. Nc3 {[%emt 0:01:00]} Nb4 {[%emt 0:04:56]} 23. Nd4 {[%emt 0:01:21]} Bg4 {[%emt 0:00:47]} 24. Nf3 {[%emt 0:11:25]} Rfd8 {[%emt 0:09:48]} 25. Rf1 {[%emt 0:00:38]} Bf5 {[%emt 0:03:53]} 26. Bd2 {[%emt 0:01:52]} Nd3 {[%emt 0:02:51]} 27. Rab1 {[%emt 0:02:33]} Nh5 {[%emt 0:05:31]} 28. Be1 {[%emt 0:05:23]} Ndxf4 {[%emt 0:05:24]} 29. gxf4 {[%emt 0:00:13]} Bxb1 {[%emt 0:00:05]} 30. Nxb1 {[%emt 0:00:05]} Nxf4 {[%emt 0:00:33]} 31. Nc3 {[%emt 0:02:08]} a6 {[%emt 0:05:12]} 32. Bd2 {[%emt 0:01:15]} Nd3 {[%emt 0:01:30]} 33. Ne4 {[%emt 0:01:53]} Nxb2 {[%emt 0:01:42]} 34. Bb4 {[%emt 0:00:29]} Rd1 {[%emt 0:03:20]} 35. Ne1 {[%emt 0:01:19]} Nc4 {[%emt 0:03:07]} 36. Rf7 {[%emt 0:00:59]} Ne5 {[%emt 0:01:45]} 37. Rxe7 {[%emt 0:00:11]} Kh8 {[%emt 0:01:24]} 38. Kf2 {[%emt 0:01:40]} Nc6 {[%emt 0:00:28]} 39. Rxg7 {[%emt 0:00:50]} Kxg7 {[%emt 0:00:51]} 40. Bc3+ {[%emt 0:00:01]} Kf8 {[%emt 0:01:33]} 0-1

[Event "Vienna Chess Open 2019"]
[Site "Vienna"]
[Date "2019.08.20"]
[Round "5.8"]
[White "Gueci, Tea"]
[Black "Baenziger, Fabian"]
[Result "1-0"]
[ECO "B51"]
[WhiteElo "2259"]
[BlackElo "2358"]
[Annotator "NA"]
[PlyCount "63"]
[EventDate "2019.08.17"]
[EventType "swiss"]
[EventCountry "AUT"]
[SourceTitle "playchess.com"]
[Source "ChessBase"]
[SourceQuality "1"]
[TimeControl "40/5400+30:1800+30"]

1. e4 {[%emt 0:00:00]} c5 {[%emt 0:00:06]} 2. Nf3 {[%emt 0:00:00]} d6 {[%emt 0:00:16]} 3. Bb5+ {[%emt 0:00:00]} Nd7 {[%emt 0:00:29]} 4. c3 {[%emt 0:00:00]} Ngf6 {[%emt 0:00:11]} 5. Qe2 {[%emt 0:00:00]} a6 {[%emt 0:00:29]} 6. Ba4 {[%emt 0:00:02]} e5 {[%emt 0:00:08]} 7. O-O {[%emt 0:00:15]} Be7 {[%emt 0:00:07]} 8. d4 {[%emt 0:00:17]} b5 {[%emt 0:00:07]} 9. Bc2 {[%emt 0:00:10]} O-O {[%emt 0:00:07]} 10. Rd1 {[%emt 0:01:50]} Qc7 {[%emt 0:00:07]} 11. d5 {[%emt 0:00:33]} c4 {[%emt 0:00:40]} 12. b4 {[%emt 0:00:27]} Qb8 {[%emt 0:17:26]} 13. a4 {[%emt 0:02:12]} Bd8 {[%emt 0:01:46]} 14. Nbd2 {[%emt 0:06:36]} Bb6 {[%emt 0:03:48]} 15. h3 {[%emt 0:06:01]} Nh5 {[%emt 0:14:23]} 16. Nf1 {[%emt 0:01:47]} Re8 {[%emt 0:00:12]} 17. Ra2 {[%emt 0:09:06]} Nf8 {[%emt 0:08:52]} 18. Nh4 {[%emt 0:15:16]} g6 {[%emt 0:08:51]} 19. g4 {[%emt 0:06:43]} Nf4 {[%emt 0:04:12]} 20. Bxf4 {[%emt 0:01:37]} exf4 {[%emt 0:00:04]} 21. Qd2 {[%emt 0:00:35]} Nd7 {[%emt 0:11:51]} 22. Qxf4 {[%emt 0:04:12]} Ne5 {[%emt 0:00:02]} 23. Nf3 {[%emt 0:02:12]} Ra7 {[%emt 0:05:53]} 24. Nxe5 {[%emt 0:04:25]} Rxe5 {[%emt 0:00:56]} 25. Nd2 {[%emt 0:01:16]} f5 {[%emt 0:04:00]} 26. exf5 {[%emt 0:04:32]} gxf5 {[%emt 0:00:05]} 27. a5 {[%emt 0:05:46]} fxg4 {[%emt 0:09:33]} 28. axb6 {[%emt 0:03:24]} Rf7 {[%emt 0:00:03]} 29. Qg3 {[%emt 0:05:16]} Rg7 {[%emt 0:00:56]} 30. h4 {[%emt 0:01:13]} Qxb6 {[%emt 0:00:04]} 31. Ne4 {[%emt 0:01:54]} Bf5 {[%emt 0:00:04]} 32. Nxd6 {[%emt 0:07:17]} 1-0

[Event "Vienna Chess Open 2019"]
[Site "Vienna"]
[Date "2019.08.20"]
[Round "5.9"]
[White "Cvitan, Ognjen"]
[Black "Sandhöfner, Florian"]
[Result "1-0"]
[ECO "D16"]
[WhiteElo "2493"]
[BlackElo "2493"]
[Annotator "ChessBase"]
[PlyCount "81"]
[EventDate "2019.08.17"]
[EventType "swiss"]
[EventCountry "AUT"]
[SourceTitle "playchess.com"]
[Source "ChessBase"]
[SourceQuality "1"]
[TimeControl "40/5400+30:1800+30"]

1. d4 {[%emt 0:01:51]} d5 {[%emt 0:00:00]} 2. c4 {[%emt 0:00:18]} c6 {[%emt 0:00:00]} 3. Nf3 {[%emt 0:00:08]} Nf6 {[%emt 0:00:00]} 4. Nc3 {[%emt 0:00:13]} dxc4 {[%emt 0:00:00]} 5. a4 {[%emt 0:00:13]} e6 {[%emt 0:00:00]} 6. e3 {[%emt 0:01:42]} c5 {[%emt 0:00:00]} 7. Bxc4 {[%emt 0:00:08]} Nc6 {[%emt 0:00:00]} 8. O-O {[%emt 0:00:42]} cxd4 {[%emt 0:00:03]} 9. Nxd4 {[%emt 0:02:00]} Nxd4 {[%emt 0:03:59]} 10. exd4 {[%emt 0:00:06]} Be7 {[%emt 0:00:13]} 11. Qe2 {[%emt 0:00:55]} O-O {[%emt 0:02:46]} 12. Rd1 {[%emt 0:00:10]} Qc7 {[%emt 0:02:16]} 13. Nb5 {[%emt 0:15:13]} Qc6 {[%emt 0:05:39]} 14. Bf4 {[%emt 0:00:10]} Bd7 {[%emt 0:05:34]} 15. Nc7 {[%emt 0:15:29]} Rad8 {[%emt 0:03:27]} 16. d5 {[%emt 0:00:33]} exd5 {[%emt 0:00:21]} 17. Bb5 {[%emt 0:00:06]} Qc5 {[%emt 0:01:00]} 18. Rac1 {[%emt 0:06:59]} Qb4 {[%emt 0:00:46]} 19. Be5 {[%emt 0:07:05]} Bxb5 {[%emt 0:04:38]} 20. Nxb5 {[%emt 0:04:37]} Qe4 {[%emt 0:05:30]} 21. Qxe4 {[%emt 0:00:24]} dxe4 {[%emt 0:00:02]} 22. Nxa7 {[%emt 0:02:37]} Ng4 {[%emt 0:10:48]} 23. Bg3 {[%emt 0:04:34]} Bg5 {[%emt 0:06:36]} 24. Rxd8 {[%emt 0:00:23]} Rxd8 {[%emt 0:00:02]} 25. Rc8 {[%emt 0:00:06]} Rxc8 {[%emt 0:00:30]} 26. Nxc8 {[%emt 0:00:07]} Bf6 {[%emt 0:03:05]} 27. b4 {[%emt 0:01:36]} Bd4 {[%emt 0:00:29]} 28. Nd6 {[%emt 0:00:19]} e3 {[%emt 0:01:00]} 29. fxe3 {[%emt 0:00:03]} Bxe3+ {[%emt 0:00:02]} 30. Kf1 {[%emt 0:00:05]} b6 {[%emt 0:00:36]} 31. Ke2 {[%emt 0:00:06]} Bg1 {[%emt 0:00:17]} 32. Nc8 {[%emt 0:01:03]} Kf8 {[%emt 0:06:27]} 33. h3 {[%emt 0:01:55]} Nf6 {[%emt 0:00:07]} 34. Kd3 {[%emt 0:01:32]} Ke8 {[%emt 0:00:54]} 35. Nd6+ {[%emt 0:00:19]} Ke7 {[%emt 0:00:14]} 36. Nf5+ {[%emt 0:00:11]} Kf8 {[%emt 0:00:14]} 37. Bd6+ {[%emt 0:00:10]} Kg8 {[%emt 0:00:01]} 38. Ne7+ {[%emt 0:00:16]} Kh8 {[%emt 0:00:39]} 39. Be5 {[%emt 0:00:31]} Nd7 {[%emt 0:00:25]} 40. Bd4 {[%emt 0:00:11]} Bh2 {[%emt 0:01:41]} 41. Nd5 {[%emt 0:30:05]} 1-0

[Event "Vienna Chess Open 2019"]
[Site "Vienna"]
[Date "2019.08.20"]
[Round "5.9"]
[White "Muckle, Julius"]
[Black "Buckels, Valentin"]
[Result "1/2-1/2"]
[ECO "E44"]
[WhiteElo "2368"]
[BlackElo "2453"]
[Annotator "ChessBase"]
[PlyCount "95"]
[EventDate "2019.08.17"]
[EventType "swiss"]
[EventCountry "AUT"]
[SourceTitle "playchess.com"]
[Source "ChessBase"]
[SourceQuality "1"]
[TimeControl "40/5400+30:1800+30"]

1. d4 {[%emt 0:00:00]} Nf6 {[%emt 0:00:00]} 2. c4 {[%emt 0:00:00]} e6 {[%emt 0:00:00]} 3. Nc3 {[%emt 0:00:00]} Bb4 {[%emt 0:00:00]} 4. e3 {[%emt 0:00:00]} b6 {[%emt 0:00:21]} 5. Nge2 {[%emt 0:00:00]} c5 {[%emt 0:01:25]} 6. a3 {[%emt 0:00:00]} Ba5 {[%emt 0:00:20]} 7. Bd2 {[%emt 0:09:39]} O-O {[%emt 0:00:49]} 8. Nf4 {[%emt 0:11:04]} Bxc3 {[%emt 0:10:45]} 9. Bxc3 {[%emt 0:00:18]} Ne4 {[%emt 0:00:52]} 10. Qf3 {[%emt 0:07:56]} Bb7 {[%emt 0:07:05]} 11. dxc5 {[%emt 0:03:10]} Bc6 {[%emt 0:12:37]} 12. Be5 {[%emt 0:09:28]} bxc5 {[%emt 0:02:05]} 13. Bd3 {[%emt 0:05:32]} Qa5+ {[%emt 0:06:41]} 14. b4 {[%emt 0:00:12]} cxb4 {[%emt 0:00:37]} 15. Bxg7 {[%emt 0:19:02]} b3+ {[%emt 0:03:31]} 16. Ke2 {[%emt 0:00:51]} Nc3+ {[%emt 0:00:25]} 17. Bxc3 {[%emt 0:00:05]} Bxf3+ {[%emt 0:05:15]} 18. Kd2 {[%emt 0:00:00]} Qc7 {[%emt 0:03:51]} 19. gxf3 {[%emt 0:00:02]} f6 {[%emt 0:06:05]} 20. Rag1+ {[%emt 0:01:49]} Kf7 {[%emt 0:06:35]} 21. Nh5 {[%emt 0:00:09]} Rg8 {[%emt 0:02:48]} 22. Rxg8 {[%emt 0:00:55]} Kxg8 {[%emt 0:00:05]} 23. Rg1+ {[%emt 0:00:03]} Kf8 {[%emt 0:05:21]} 24. Nxf6 {[%emt 0:05:12]} Qxh2 {[%emt 0:01:44]} 25. Rg8+ {[%emt 0:03:08]} Kf7 {[%emt 0:03:56]} 26. Rg7+ {[%emt 0:02:40]} Kxg7 {[%emt 0:00:34]} 27. Ng4+ {[%emt 0:00:00]} Kf7 {[%emt 0:00:17]} 28. Nxh2 {[%emt 0:00:07]} h5 {[%emt 0:00:30]} 29. f4 {[%emt 0:00:37]} Nc6 {[%emt 0:00:10]} 30. Nf3 {[%emt 0:00:18]} Rb8 {[%emt 0:01:03]} 31. Kc1 {[%emt 0:01:28]} a5 {[%emt 0:02:54]} 32. Kb2 {[%emt 0:05:44]} a4 {[%emt 0:00:53]} 33. c5 {[%emt 0:00:21]} Ke7 {[%emt 0:04:05]} 34. Bg6 {[%emt 0:02:05]} Rb5 {[%emt 0:00:45]} 35. Bxh5 {[%emt 0:00:29]} Rxc5 {[%emt 0:00:11]} 36. Bg6 {[%emt 0:00:02]} d6 {[%emt 0:04:14]} 37. Nd4 {[%emt 0:01:06]} Nxd4 {[%emt 0:01:27]} 38. Bxd4 {[%emt 0:00:08]} Rc8 {[%emt 0:00:32]} 39. Bd3 {[%emt 0:00:12]} Rf8 {[%emt 0:04:15]} 40. Bb5 {[%emt 0:01:26]} e5 {[%emt 0:02:48]} 41. fxe5 {[%emt 0:32:33]} Rxf2+ {[%emt 0:31:31]} 42. Kb1 {[%emt 0:08:50]} dxe5 {[%emt 0:00:00]} 43. Ba7 {[%emt 0:00:00]} Kd6 {[%emt 0:00:00]} 44. Bb8+ {[%emt 0:00:00]} Kc5 {[%emt 0:00:00]} 45. Bxa4 {[%emt 0:00:00]} Kc4 {[%emt 0:00:00]} 46. Bxe5 {[%emt 0:00:00]} Rf1+ {[%emt 0:00:00]} 47. Kb2 {[%emt 0:00:00]} Rf2+ {[%emt 0:00:00]} 48. Kb1 1/2-1/2

[Event "Vienna Chess Open 2019"]
[Site "Vienna"]
[Date "2019.08.20"]
[Round "5.9"]
[White "Rubil, Marko"]
[Black "Ruff, Maximilian"]
[Result "1/2-1/2"]
[ECO "B42"]
[WhiteElo "2248"]
[BlackElo "2353"]
[Annotator "ChessBase"]
[PlyCount "127"]
[EventDate "2019.08.17"]
[EventType "swiss"]
[EventCountry "AUT"]
[SourceTitle "playchess.com"]
[Source "ChessBase"]
[SourceQuality "1"]
[TimeControl "40/5400+30:1800+30"]

1. e4 {[%emt 0:09:12]} c5 {[%emt 0:00:00]} 2. Nf3 {[%emt 0:00:05]} e6 {[%emt 0:00:00]} 3. d4 {[%emt 0:00:06]} cxd4 {[%emt 0:00:01]} 4. Nxd4 {[%emt 0:00:06]} a6 {[%emt 0:00:04]} 5. Bd3 {[%emt 0:00:09]} Nc6 {[%emt 0:00:19]} 6. Nxc6 {[%emt 0:00:10]} dxc6 {[%emt 0:00:07]} 7. O-O {[%emt 0:00:08]} e5 {[%emt 0:01:19]} 8. Nd2 {[%emt 0:00:09]} Qc7 {[%emt 0:00:09]} 9. a4 {[%emt 0:00:13]} Nf6 {[%emt 0:01:35]} 10. Nc4 {[%emt 0:00:16]} Bc5 {[%emt 0:06:11]} 11. Bg5 {[%emt 0:00:27]} Be6 {[%emt 0:15:02]} 12. Qf3 {[%emt 0:06:03]} Nd7 {[%emt 0:00:57]} 13. a5 {[%emt 0:02:42]} O-O {[%emt 0:06:51]} 14. Qg3 {[%emt 0:05:56]} Kh8 {[%emt 0:02:28]} 15. Be3 {[%emt 0:13:14]} Bxe3 {[%emt 0:04:10]} 16. Qxe3 {[%emt 0:01:29]} Rad8 {[%emt 0:02:01]} 17. Rfd1 {[%emt 0:15:02]} Nf6 {[%emt 0:05:38]} 18. Nb6 {[%emt 0:01:39]} Qd6 {[%emt 0:03:32]} 19. Ra4 {[%emt 0:04:03]} Ng4 {[%emt 0:13:23]} 20. Qe1 {[%emt 0:02:03]} Qc5 {[%emt 0:04:21]} 21. h3 {[%emt 0:18:37]} Nf6 {[%emt 0:00:20]} 22. Qb4 {[%emt 0:00:18]} Qxb4 {[%emt 0:24:41]} 23. Rxb4 {[%emt 0:00:01]} c5 {[%emt 0:00:34]} 24. Ra4 {[%emt 0:00:11]} Rd4 {[%emt 0:02:32]} 25. Rxd4 {[%emt 0:00:06]} cxd4 {[%emt 0:00:05]} 26. Ra1 {[%emt 0:00:15]} Nd7 {[%emt 0:01:05]} 27. Nxd7 {[%emt 0:08:06]} Bxd7 {[%emt 0:00:01]} 28. Ra3 {[%emt 0:00:10]} Rc8 {[%emt 0:01:55]} 29. Rb3 {[%emt 0:00:19]} Rc7 {[%emt 0:00:22]} 30. Rb6 {[%emt 0:05:49]} g6 {[%emt 0:01:40]} 31. f4 {[%emt 0:00:39]} exf4 {[%emt 0:01:12]} 32. Rd6 {[%emt 0:01:10]} Kg7 {[%emt 0:02:23]} 33. Rxd4 {[%emt 0:05:35]} Kf6 {[%emt 0:00:04]} 34. Kf2 {[%emt 0:00:26]} Be6 {[%emt 0:00:26]} 35. e5+ {[%emt 0:01:05]} Kxe5 {[%emt 0:00:36]} 36. Re4+ {[%emt 0:00:01]} Kd6 37. Rxf4 {[%emt 0:00:04]} Bd5 {[%emt 0:01:34]} 38. g4 {[%emt 0:01:01]} Ke5 {[%emt 0:00:43]} 39. Ke3 {[%emt 0:00:27]} h6 {[%emt 0:00:17]} 40. h4 {[%emt 0:00:17]} Re7 {[%emt 0:00:44]} 41. c4 {[%emt 0:03:34]} Be6 {[%emt 0:03:21]} 42. Re4+ {[%emt 0:05:01]} Kd6 {[%emt 0:09:36]} 43. Kd4 {[%emt 0:02:32]} Rd7 {[%emt 0:01:26]} 44. Kc3 {[%emt 0:13:13]} Rc7 {[%emt 0:00:27]} 45. b4 {[%emt 0:00:40]} f5 {[%emt 0:02:30]} 46. c5+ {[%emt 0:04:55]} Ke7 {[%emt 0:03:37]} 47. Re1 {[%emt 0:00:51]} Kf7 {[%emt 0:04:46]} 48. g5 {[%emt 0:01:55]} hxg5 {[%emt 0:01:04]} 49. hxg5 {[%emt 0:00:01]} Bd5 {[%emt 0:05:27]} 50. Re5 {[%emt 0:01:14]} Bc6 {[%emt 0:00:50]} 51. Bc4+ {[%emt 0:00:11]} Kg7 {[%emt 0:00:53]} 52. Re6 {[%emt 0:01:02]} Be4 {[%emt 0:02:03]} 53. Rf6 {[%emt 0:01:21]} Rd7 {[%emt 0:00:28]} 54. b5 {[%emt 0:00:17]} axb5 {[%emt 0:00:29]} 55. Bxb5 {[%emt 0:00:01]} Rd1 {[%emt 0:00:32]} 56. a6 {[%emt 0:02:40]} bxa6 {[%emt 0:00:20]} 57. Rxa6 {[%emt 0:00:14]} Rg1 {[%emt 0:00:44]} 58. Ra7+ {[%emt 0:00:52]} Kf8 {[%emt 0:00:01]} 59. Kd4 {[%emt 0:00:25]} Rxg5 {[%emt 0:00:37]} 60. Ke5 {[%emt 0:00:31]} f4+ {[%emt 0:00:21]} 61. Kxe4 {[%emt 0:00:15]} Rxc5 {[%emt 0:00:03]} 62. Be2 {[%emt 0:00:44]} Rf5 {[%emt 0:00:23]} 63. Bg4 {[%emt 0:00:33]} Rf7 {[%emt 0:00:10]} 64. Rxf7+ {[%emt 0:00:15]} 1/2-1/2